[Event "Masters Tournament (MTO)"]
[Site "Biel, Switzerland"]
[Date "2026.07.17"]
[Round "5.6"]
[White "Cherniaev, Alexander"]
[Black "Alexakis, Dimitris"]
[Result "0-1"]
[TimeControl "100+30+30sec/move"]
[WhiteTitle "-"]
[BlackTitle "-"]
[WhiteFideId "4117301"]
[BlackFideId "4277023"]
[WhiteElo "2275"]
[BlackElo "2525"]

1. e4 {[%clk 01:40:57]} {[%emt 00:00:03]} c5 {[%clk 01:38:59]} {[%emt
00:02:02]} 2. Nf3 {[%clk 01:41:20]} {[%emt 00:00:07]} Nc6 {[%clk 01:39:23]}
{[%emt 00:00:07]} 3. Bb5 {[%clk 01:41:45]} {[%emt 00:00:05]} g6 {[%clk
01:39:46]} {[%emt 00:00:07]} 4. Nc3 {[%clk 01:42:10]} {[%emt 00:00:05]} Bg7
{[%clk 01:37:37]} {[%emt 00:02:38]} 5. d3 {[%clk 01:42:27]} {[%emt 00:00:13]}
Nd4 {[%clk 01:18:34]} {[%emt 00:19:33]} 6. Bc4 {[%clk 01:42:46]} {[%emt
00:00:11]} a6 {[%clk 01:16:56]} {[%emt 00:02:08]} 7. Nxd4 {[%clk 01:42:55]}
{[%emt 00:00:21]} cxd4 {[%clk 01:15:51]} {[%emt 00:01:36]} 8. Ne2 {[%clk
01:43:20]} {[%emt 00:00:04]} b5 {[%clk 01:13:59]} {[%emt 00:02:22]} 9. Bd5
{[%clk 01:36:21]} {[%emt 00:07:29]} Rb8 {[%clk 01:13:45]} {[%emt 00:00:44]} 10.
Bf4 {[%clk 01:36:13]} {[%emt 00:00:38]} d6 {[%clk 00:53:37]} {[%emt 00:20:38]}
11. Qd2 {[%clk 01:33:14]} {[%emt 00:03:28]} e5 {[%clk 00:46:23]} {[%emt
00:07:44]} 12. Bg5 {[%clk 01:28:32]} {[%emt 00:05:12]} Ne7 {[%clk 00:37:58]}
{[%emt 00:08:56]} 13. Bb3 {[%clk 01:25:15]} {[%emt 00:03:47]} h6 {[%clk
00:34:18]} {[%emt 00:04:10]} 14. Bxe7 {[%clk 01:25:23]} {[%emt 00:00:22]} Qxe7
{[%clk 00:34:36]} {[%emt 00:00:12]} 15. O-O {[%clk 01:24:35]} {[%emt 00:01:17]}
O-O {[%clk 00:32:09]} {[%emt 00:02:58]} 16. c3 {[%clk 01:19:34]} {[%emt
00:05:31]} dxc3 {[%clk 00:28:02]} {[%emt 00:04:37]} 17. Nxc3 {[%clk 01:19:59]}
{[%emt 00:00:05]} Kh7 {[%clk 00:28:19]} {[%emt 00:00:13]} 18. Nd5 {[%clk
01:20:20]} {[%emt 00:00:09]} Qd8 {[%clk 00:28:09]} {[%emt 00:00:40]} 19. Rac1
{[%clk 01:13:23]} {[%emt 00:07:27]} h5 {[%clk 00:22:49]} {[%emt 00:05:50]} 20.
Rce1 {[%clk 01:02:55]} {[%emt 00:10:57]} Bh6 {[%clk 00:17:26]} {[%emt
00:05:54]} 21. Qd1 {[%clk 01:03:13]} {[%emt 00:00:12]} Bg4 {[%clk 00:15:48]}
{[%emt 00:02:08]} 22. f3 {[%clk 01:03:34]} {[%emt 00:00:09]} Be6 {[%clk
00:15:22]} {[%emt 00:00:56]} 23. Kh1 {[%clk 01:03:35]} {[%emt 00:00:29]} a5
{[%clk 00:14:34]} {[%emt 00:01:18]} 24. a3 {[%clk 01:03:26]} {[%emt 00:00:39]}
h4 {[%clk 00:13:59]} {[%emt 00:01:05]} 25. d4 {[%clk 01:02:03]} {[%emt
00:01:53]} a4 {[%clk 00:09:06]} {[%emt 00:05:23]} 26. Ba2 {[%clk 01:02:31]}
{[%emt 00:00:02]} b4 {[%clk 00:06:23]} {[%emt 00:03:13]} 27. axb4 {[%clk
01:01:23]} {[%emt 00:01:38]} Bxd5 {[%clk 00:06:35]} {[%emt 00:00:19]} 28. Bxd5
{[%clk 01:01:37]} {[%emt 00:00:16]} Rxb4 {[%clk 00:06:52]} {[%emt 00:00:13]} 29.
dxe5 {[%clk 01:01:39]} {[%emt 00:00:28]} dxe5 {[%clk 00:04:46]} {[%emt
00:02:36]} 30. Re2 {[%clk 01:00:17]} {[%emt 00:01:52]} Qb6 {[%clk 00:03:51]}
{[%emt 00:01:25]} 31. Qc2 {[%clk 00:48:59]} {[%emt 00:11:48]} Be3 {[%clk
00:02:12]} {[%emt 00:02:09]} 32. Ra1 {[%clk 00:42:16]} {[%emt 00:07:12]} Bd4
{[%clk 00:02:26]} {[%emt 00:00:17]} 33. Qd1 {[%clk 00:42:37]} {[%emt 00:00:09]}
Rc8 {[%clk 00:01:15]} {[%emt 00:01:41]} 34. Qe1 {[%clk 00:40:34]} {[%emt
00:02:33]} Rxb2 {[%clk 00:00:47]} {[%emt 00:00:58]} 35. Qxh4+ {[%clk 00:39:59]}
{[%emt 00:01:04]} Kg7 {[%clk 00:01:15]} {[%emt 00:00:02]} 36. Ree1 {[%clk
00:38:46]} {[%emt 00:01:43]} Bf2 {[%clk 00:00:51]} {[%emt 00:00:54]} 37. Qg4
{[%clk 00:36:23]} {[%emt 00:02:53]} Bxe1 {[%clk 00:01:00]} {[%emt 00:00:22]} 38.
Qxc8 {[%clk 00:36:45]} {[%emt 00:00:08]} Qf2 {[%clk 00:01:22]} {[%emt
00:00:08]} 0-1

[Event "Masters Tournament (MTO)"]
[Site "Biel, Switzerland"]
[Date "2026.07.17"]
[Round "5.7"]
[White "Hasenohr, Benedict"]
[Black "Shukhman, Anna"]
[Result "0-1"]
[TimeControl "100+30+30sec/move"]
[WhiteTitle "-"]
[BlackTitle "-"]
[WhiteFideId "1303309"]
[BlackFideId "54180058"]
[WhiteElo "2247"]
[BlackElo "2443"]

1. d4 {[%clk 01:40:56]} {[%emt 00:00:01]} Nf6 {[%clk 01:40:52]} {[%emt
00:00:08]} 2. c4 {[%clk 01:41:21]} {[%emt 00:00:05]} e6 {[%clk 01:41:18]}
{[%emt 00:00:03]} 3. Nc3 {[%clk 01:41:47]} {[%emt 00:00:05]} d5 {[%clk
01:41:46]} {[%emt 00:00:03]} 4. cxd5 {[%clk 01:42:08]} {[%emt 00:00:11]} exd5
{[%clk 01:42:14]} 5. Bg5 {[%clk 01:42:29]} {[%emt 00:00:08]} Be6 {[%clk
01:42:37]} {[%emt 00:00:07]} 6. e3 {[%clk 01:42:24]} {[%emt 00:00:36]} Nbd7
{[%clk 01:43:01]} {[%emt 00:00:04]} 7. Bd3 {[%clk 01:42:01]} {[%emt 00:00:55]}
c6 {[%clk 01:43:28]} {[%emt 00:00:02]} 8. h3 {[%clk 01:41:34]} {[%emt
00:00:57]} Be7 {[%clk 01:43:49]} {[%emt 00:00:08]} 9. Nf3 {[%clk 01:41:11]}
{[%emt 00:00:53]} Nh5 {[%clk 01:44:09]} {[%emt 00:00:10]} 10. Bxe7 {[%clk
01:41:31]} {[%emt 00:00:10]} Qxe7 {[%clk 01:44:35]} {[%emt 00:00:04]} 11. O-O
{[%clk 01:40:56]} {[%emt 00:01:05]} g6 {[%clk 01:38:39]} {[%emt 00:06:27]} 12.
Qb1 {[%clk 01:39:05]} {[%emt 00:02:21]} a5 {[%clk 01:34:27]} {[%emt 00:04:42]}
13. a3 {[%clk 01:39:11]} {[%emt 00:00:25]} Qf6 {[%clk 01:22:22]} {[%emt
00:12:35]} 14. Qd1 {[%clk 01:30:05]} {[%emt 00:09:36]} O-O {[%clk 01:22:14]}
{[%emt 00:00:37]} 15. Nh2 {[%clk 01:09:20]} {[%emt 00:21:15]} Ng7 {[%clk
01:16:35]} {[%emt 00:06:09]} 16. Qf3 {[%clk 01:08:41]} {[%emt 00:01:09]} Rfe8
{[%clk 01:11:44]} {[%emt 00:05:20]} 17. b4 {[%clk 01:05:24]} {[%emt 00:03:48]}
b5 {[%clk 01:02:10]} {[%emt 00:10:05]} 18. Ne2 {[%clk 00:56:22]} {[%emt
00:09:31]} Qe7 {[%clk 01:00:54]} {[%emt 00:01:46]} 19. Ng4 {[%clk 00:52:26]}
{[%emt 00:04:26]} h5 {[%clk 00:48:31]} {[%emt 00:12:53]} 20. Ne5 {[%clk
00:47:20]} {[%emt 00:05:36]} Nxe5 {[%clk 00:48:56]} {[%emt 00:00:05]} 21. dxe5
{[%clk 00:47:46]} {[%emt 00:00:04]} axb4 {[%clk 00:46:47]} {[%emt 00:02:40]} 22.
Nd4 {[%clk 00:41:33]} {[%emt 00:06:43]} c5 {[%clk 00:30:57]} {[%emt 00:16:20]}
23. Nxe6 {[%clk 00:38:40]} {[%emt 00:03:23]} Qxe6 {[%clk 00:28:10]} {[%emt
00:03:16]} 24. Bxb5 {[%clk 00:38:56]} {[%emt 00:00:14]} Reb8 {[%clk 00:28:11]}
{[%emt 00:00:29]} 25. a4 {[%clk 00:38:46]} {[%emt 00:00:40]} c4 {[%clk
00:27:59]} {[%emt 00:00:43]} 26. Rad1 {[%clk 00:35:20]} {[%emt 00:03:56]} Rd8
{[%clk 00:27:41]} {[%emt 00:00:48]} 27. Qf6 {[%clk 00:28:20]} {[%emt 00:07:29]}
Rac8 {[%clk 00:20:55]} {[%emt 00:07:16]} 28. Ba6 {[%clk 00:26:20]} {[%emt
00:02:31]} Rb8 {[%clk 00:21:10]} {[%emt 00:00:13]} 29. e4 {[%clk 00:23:39]}
{[%emt 00:03:13]} Ne8 {[%clk 00:18:12]} {[%emt 00:03:27]} 30. exd5 {[%clk
00:23:06]} {[%emt 00:01:03]} Qxf6 {[%clk 00:18:38]} {[%emt 00:00:04]} 31. exf6
{[%clk 00:23:28]} {[%emt 00:00:07]} c3 {[%clk 00:19:03]} {[%emt 00:00:05]} 32.
Rd3 {[%clk 00:05:26]} {[%emt 00:18:32]} Nd6 {[%clk 00:10:51]} {[%emt 00:08:43]}
33. Re3 {[%clk 00:05:52]} {[%emt 00:00:04]} Ra8 {[%clk 00:07:14]} {[%emt
00:04:07]} 34. Bb5 {[%clk 00:05:12]} {[%emt 00:01:11]} Nxb5 {[%clk 00:07:31]}
{[%emt 00:00:13]} 35. axb5 {[%clk 00:05:34]} {[%emt 00:00:07]} Rxd5 {[%clk
00:07:52]} {[%emt 00:00:09]} 36. b6 {[%clk 00:05:01]} {[%emt 00:01:03]} Rb5
{[%clk 00:07:59]} {[%emt 00:00:23]} 37. Re7 {[%clk 00:01:56]} {[%emt 00:03:35]}
b3 {[%clk 00:07:29]} {[%emt 00:01:00]} 38. b7 {[%clk 00:01:17]} {[%emt
00:01:09]} Rf8 {[%emt 00:01:46]} 39. Rc7 {[%clk 00:00:39]} c2 {[%clk 00:07:41]}
{[%emt 00:00:09]} 40. Kh2 {[%clk 00:00:33]} {[%emt 00:00:37]} b2 {[%clk
00:06:55]} {[%emt 00:01:16]} 0-1

[Event "Masters Tournament (MTO)"]
[Site "Biel, Switzerland"]
[Date "2026.07.17"]
[Round "5.8"]
[White "Baenziger, Fabian"]
[Black "Dai, Wenzhi"]
[Result "1-0"]
[TimeControl "100+30+30sec/move"]
[WhiteTitle "-"]
[BlackTitle "-"]
[WhiteFideId "1330110"]
[BlackFideId "8608369"]
[WhiteElo "2435"]
[BlackElo "2126"]

1. d4 {[%clk 01:40:54]} {[%emt 00:00:05]} Nf6 {[%clk 01:40:31]} {[%emt
00:00:30]} 2. c4 {[%clk 01:41:01]} {[%emt 00:00:24]} e6 {[%clk 01:40:50]}
{[%emt 00:00:10]} 3. Nf3 {[%clk 01:40:11]} {[%emt 00:01:21]} d5 {[%clk
01:40:28]} {[%emt 00:00:51]} 4. g3 {[%clk 01:39:56]} {[%emt 00:00:45]} Be7
{[%clk 01:40:52]} {[%emt 00:00:07]} 5. Bg2 {[%clk 01:40:18]} {[%emt 00:00:07]}
O-O {[%clk 01:41:13]} {[%emt 00:00:07]} 6. O-O {[%clk 01:40:06]} {[%emt
00:00:42]} dxc4 {[%clk 01:41:38]} {[%emt 00:00:06]} 7. Qa4 {[%clk 01:40:26]}
{[%emt 00:00:11]} a6 {[%clk 01:41:51]} {[%emt 00:00:18]} 8. Qxc4 {[%clk
01:40:44]} {[%emt 00:00:11]} b5 {[%clk 01:42:15]} {[%emt 00:00:06]} 9. Qc2
{[%clk 01:41:08]} {[%emt 00:00:06]} Bb7 {[%clk 01:42:40]} {[%emt 00:00:04]} 10.
Bd2 {[%clk 01:39:59]} {[%emt 00:01:39]} Ra7 {[%clk 01:41:41]} {[%emt 00:01:30]}
11. Rc1 {[%clk 01:36:17]} {[%emt 00:04:12]} Be4 {[%clk 01:41:52]} {[%emt
00:00:19]} 12. Qb3 {[%clk 01:36:12]} {[%emt 00:00:35]} Nc6 {[%clk 01:42:16]}
{[%emt 00:00:06]} 13. e3 {[%clk 01:36:36]} {[%emt 00:00:06]} Qa8 {[%clk
01:42:32]} {[%emt 00:00:14]} 14. Qd1 {[%clk 01:36:05]} {[%emt 00:01:01]} b4
{[%clk 01:42:55]} {[%emt 00:00:08]} 15. Be1 {[%clk 01:33:02]} {[%emt 00:03:32]}
h6 {[%clk 01:37:29]} {[%emt 00:05:56]} 16. a3 {[%clk 01:26:39]} {[%emt
00:06:54]} a5 {[%clk 01:24:37]} {[%emt 00:13:21]} 17. Qe2 {[%clk 01:23:47]}
{[%emt 00:03:22]} Bd5 {[%clk 01:16:06]} {[%emt 00:09:01]} 18. Nbd2 {[%clk
01:20:26]} {[%emt 00:03:50]} bxa3 {[%clk 00:55:08]} {[%emt 00:21:29]} 19. bxa3
{[%clk 01:20:12]} {[%emt 00:00:44]} Nb8 {[%clk 00:55:24]} {[%emt 00:00:14]} 20.
Nh4 {[%clk 01:08:53]} {[%emt 00:11:49]} Bxg2 {[%clk 00:54:48]} {[%emt
00:01:05]} 21. Nxg2 {[%clk 01:08:58]} {[%emt 00:00:25]} Nbd7 {[%clk 00:51:13]}
{[%emt 00:04:05]} 22. a4 {[%clk 01:08:06]} {[%emt 00:01:23]} Rb8 {[%clk
00:41:27]} {[%emt 00:10:16]} 23. Rab1 {[%clk 00:58:50]} {[%emt 00:09:46]} Bb4
{[%clk 00:27:26]} {[%emt 00:14:31]} 24. Nb3 {[%clk 00:52:59]} {[%emt 00:06:21]}
Rab7 {[%clk 00:25:35]} {[%emt 00:02:21]} 25. Qc2 {[%clk 00:51:03]} {[%emt
00:02:25]} Qa7 {[%clk 00:22:37]} {[%emt 00:03:29]} 26. Nf4 {[%clk 00:44:53]}
{[%emt 00:06:39]} Bxe1 {[%clk 00:21:45]} {[%emt 00:01:23]} 27. Rxe1 {[%clk
00:45:01]} {[%emt 00:00:21]} c5 {[%clk 00:12:43]} {[%emt 00:09:33]} 28. Nd3
{[%clk 00:42:59]} {[%emt 00:02:31]} cxd4 {[%clk 00:11:48]} {[%emt 00:01:26]} 29.
Nxd4 {[%clk 00:42:43]} {[%emt 00:00:46]} Rxb1 {[%clk 00:11:31]} {[%emt
00:00:47]} 30. Rxb1 {[%clk 00:43:04]} {[%emt 00:00:08]} Rxb1+ {[%clk 00:11:58]}
{[%emt 00:00:04]} 31. Qxb1 {[%clk 00:43:24]} {[%emt 00:00:10]} Qb6 {[%clk
00:11:27]} {[%emt 00:01:01]} 32. Qc2 {[%clk 00:42:47]} {[%emt 00:01:06]} Nd5
{[%clk 00:06:21]} {[%emt 00:05:37]} 33. Qc8+ {[%clk 00:40:16]} {[%emt
00:03:00]} Nf8 {[%clk 00:06:50]} {[%emt 00:00:02]} 34. Nb5 {[%clk 00:37:27]}
{[%emt 00:03:19]} g6 {[%clk 00:01:55]} {[%emt 00:05:25]} 35. Ne5 {[%clk
00:36:23]} {[%emt 00:01:34]} Nf6 {[%clk 00:00:32]} {[%emt 00:01:53]} 36. Nc4
{[%clk 00:36:31]} {[%emt 00:00:22]} 1-0

[Event "Masters Tournament (MTO)"]
[Site "Biel, Switzerland"]
[Date "2026.07.17"]
[Round "5.9"]
[White "Liu, Bei"]
[Black "Elmi, Saad Abobaker"]
[Result "1-0"]
[TimeControl "100+30+30sec/move"]
[WhiteTitle "-"]
[BlackTitle "-"]
[WhiteFideId "8603596"]
[BlackFideId "1553259"]
[WhiteElo "2175"]
[BlackElo "2399"]

1. e4 {[%clk 01:38:56]} {[%emt 00:02:01]} c5 {[%clk 01:40:47]} {[%emt
00:00:13]} 2. Nf3 {[%clk 01:39:05]} {[%emt 00:00:21]} d6 {[%clk 01:41:10]}
{[%emt 00:00:07]} 3. d4 {[%clk 01:39:30]} {[%emt 00:00:07]} cxd4 {[%clk
01:41:33]} {[%emt 00:00:08]} 4. Nxd4 {[%clk 01:39:58]} Nf6 {[%clk 01:41:53]}
{[%emt 00:00:10]} 5. Nc3 {[%clk 01:40:09]} {[%emt 00:00:19]} g6 {[%clk
01:42:07]} {[%emt 00:00:15]} 6. Be3 {[%clk 01:40:20]} {[%emt 00:00:21]} Bg7
{[%clk 01:42:19]} {[%emt 00:00:16]} 7. f3 {[%clk 01:40:44]} {[%emt 00:00:06]}
a6 {[%clk 01:42:40]} {[%emt 00:00:09]} 8. Qd2 {[%clk 01:36:30]} {[%emt
00:04:43]} h5 {[%clk 01:42:58]} {[%emt 00:00:12]} 9. Bc4 {[%clk 01:36:07]}
{[%emt 00:00:53]} b5 {[%clk 01:42:54]} {[%emt 00:00:34]} 10. Bb3 {[%clk
01:36:31]} {[%emt 00:00:06]} Bb7 {[%clk 01:43:10]} {[%emt 00:00:15]} 11. a4
{[%clk 01:27:39]} {[%emt 00:09:22]} bxa4 {[%clk 01:36:54]} {[%emt 00:06:45]} 12.
Bxa4+ {[%clk 01:26:02]} {[%emt 00:02:08]} Nbd7 {[%clk 01:37:06]} {[%emt
00:00:18]} 13. O-O {[%clk 01:25:39]} {[%emt 00:00:53]} O-O {[%clk 01:36:49]}
{[%emt 00:00:46]} 14. Bb3 {[%clk 01:14:54]} {[%emt 00:11:15]} Rc8 {[%clk
01:33:57]} {[%emt 00:03:21]} 15. Kh1 {[%clk 01:13:46]} {[%emt 00:01:40]} Ne5
{[%clk 01:32:45]} {[%emt 00:01:41]} 16. Bh6 {[%clk 01:11:44]} {[%emt 00:02:32]}
Nc4 {[%clk 01:29:31]} {[%emt 00:03:44]} 17. Bxc4 {[%clk 01:10:35]} {[%emt
00:01:39]} Rxc4 {[%clk 01:28:59]} {[%emt 00:01:02]} 18. Bxg7 {[%clk 01:10:57]}
{[%emt 00:00:08]} Kxg7 {[%clk 01:29:25]} {[%emt 00:00:03]} 19. b3 {[%clk
01:08:26]} {[%emt 00:03:03]} Rc8 {[%clk 01:29:02]} {[%emt 00:00:50]} 20. Nd5
{[%clk 01:02:13]} {[%emt 00:06:45]} e6 {[%clk 01:22:25]} {[%emt 00:07:08]} 21.
Ne3 {[%clk 00:56:58]} {[%emt 00:05:45]} Nd7 {[%clk 01:00:06]} {[%emt 00:22:49]}
22. c4 {[%clk 00:55:26]} {[%emt 00:02:02]} Qf6 {[%clk 00:59:37]} {[%emt
00:00:57]} 23. Ne2 {[%clk 00:49:54]} {[%emt 00:06:03]} Nc5 {[%clk 00:57:43]}
{[%emt 00:02:25]} 24. Rab1 {[%clk 00:48:15]} {[%emt 00:02:09]} Rfd8 {[%clk
00:54:33]} {[%emt 00:03:38]} 25. b4 {[%clk 00:27:20]} {[%emt 00:21:27]} Nd7
{[%clk 00:51:15]} {[%emt 00:03:48]} 26. Qxd6 {[%clk 00:24:33]} {[%emt
00:03:17]} Ne5 {[%clk 00:50:55]} {[%emt 00:00:50]} 27. Qb6 {[%clk 00:24:58]}
{[%emt 00:00:05]} Rb8 {[%clk 00:47:10]} {[%emt 00:04:15]} 28. Qa7 {[%clk
00:23:58]} {[%emt 00:01:29]} Nc6 {[%clk 00:42:59]} {[%emt 00:04:41]} 29. Qc5
{[%clk 00:24:09]} {[%emt 00:00:18]} Rd2 {[%clk 00:43:08]} {[%emt 00:00:22]} 30.
b5 {[%clk 00:22:20]} {[%emt 00:02:20]} axb5 {[%clk 00:43:06]} {[%emt 00:00:32]}
31. cxb5 {[%clk 00:22:47]} {[%emt 00:00:03]} Ne5 {[%clk 00:42:29]} {[%emt
00:01:07]} 32. Qc7 {[%clk 00:14:13]} {[%emt 00:09:04]} Rbd8 {[%clk 00:40:34]}
{[%emt 00:02:24]} 33. Nc1 {[%clk 00:09:54]} {[%emt 00:04:49]} Qf4 {[%clk
00:18:53]} {[%emt 00:22:11]} 34. Nb3 {[%clk 00:07:03]} {[%emt 00:03:22]} R8d7
{[%clk 00:15:48]} {[%emt 00:03:34]} 35. Qb8 {[%clk 00:06:06]} {[%emt 00:01:27]}
R2d6 {[%clk 00:13:24]} {[%emt 00:02:54]} 36. Nc5 {[%clk 00:05:01]} {[%emt
00:01:36]} Rd8 {[%clk 00:13:11]} {[%emt 00:00:42]} 37. Qxb7 {[%clk 00:05:07]}
{[%emt 00:00:24]} Qxe3 {[%clk 00:13:29]} {[%emt 00:00:11]} 38. Qc7 {[%clk
00:05:10]} {[%emt 00:00:28]} Qd4 {[%clk 00:05:40]} {[%emt 00:08:19]} 39. h3
{[%clk 00:04:35]} {[%emt 00:01:05]} h4 {[%clk 00:05:45]} {[%emt 00:00:25]} 40.
f4 {[%clk 00:00:39]} {[%emt 00:04:27]} Nc4 {[%clk 00:01:47]} {[%emt 00:04:28]}
41. f5 {[%clk 00:00:39]} {[%emt 00:00:29]} exf5 {[%clk 00:01:32]} {[%emt
00:00:45]} 42. exf5 {[%clk 00:01:00]} {[%emt 00:00:10]} Ne5 {[%clk 00:01:43]}
{[%emt 00:00:16]} 43. Ne6+ {[%clk 00:01:15]} {[%emt 00:00:18]} 1-0

[Event "Masters Tournament (MTO)"]
[Site "Biel, Switzerland"]
[Date "2026.07.17"]
[Round "5.10"]
[White "Savitha, Shri B"]
[Black "Xu, Chang(Cq)"]
[Result "1-0"]
[TimeControl "100+30+30sec/move"]
[WhiteTitle "-"]
[BlackTitle "-"]
[WhiteFideId "35061887"]
[BlackFideId "8641757"]
[WhiteElo "2368"]
[BlackElo "2125"]

1. e4 {[%clk 01:37:36]} {[%emt 00:03:26]} c5 {[%clk 01:40:22]} {[%emt
00:00:30]} 2. Nf3 {[%clk 01:38:02]} {[%emt 00:00:11]} d6 {[%clk 01:40:26]}
{[%emt 00:00:25]} 3. d4 {[%clk 01:38:26]} {[%emt 00:00:06]} cxd4 {[%clk
01:40:47]} {[%emt 00:00:09]} 4. Nxd4 {[%clk 01:38:52]} {[%emt 00:00:04]} Nf6
{[%clk 01:41:06]} {[%emt 00:00:11]} 5. Nc3 {[%clk 01:39:18]} {[%emt 00:00:04]}
a6 {[%clk 01:41:27]} {[%emt 00:00:09]} 6. h3 {[%clk 01:38:31]} {[%emt
00:01:17]} e5 {[%clk 01:41:34]} {[%emt 00:00:23]} 7. Nb3 {[%clk 01:38:54]}
{[%emt 00:00:05]} Be7 {[%clk 01:41:10]} {[%emt 00:00:56]} 8. g4 {[%clk
01:38:47]} {[%emt 00:00:38]} h6 {[%clk 01:40:14]} {[%emt 00:01:25]} 9. Be3
{[%clk 01:38:29]} {[%emt 00:00:49]} Nbd7 {[%clk 01:37:54]} {[%emt 00:02:49]} 10.
Qf3 {[%clk 01:37:27]} {[%emt 00:01:33]} b5 {[%clk 01:37:16]} {[%emt 00:01:07]}
11. O-O-O {[%clk 01:35:22]} {[%emt 00:02:35]} b4 {[%clk 01:36:15]} {[%emt
00:01:30]} 12. Nd5 {[%clk 01:35:48]} {[%emt 00:00:06]} Nxd5 {[%clk 01:36:35]}
{[%emt 00:00:10]} 13. exd5 {[%clk 01:36:14]} {[%emt 00:00:04]} a5 {[%clk
01:36:50]} {[%emt 00:00:15]} 14. Bb5 {[%clk 01:34:30]} {[%emt 00:02:14]} a4
{[%clk 01:35:32]} {[%emt 00:01:48]} 15. Nd2 {[%clk 01:32:13]} {[%emt 00:02:47]}
Ra5 {[%clk 01:35:29]} {[%emt 00:00:33]} 16. Bc6 {[%clk 01:29:20]} {[%emt
00:03:24]} O-O {[%clk 01:35:31]} {[%emt 00:00:25]} 17. Nc4 {[%clk 01:24:25]}
{[%emt 00:05:27]} Rc5 {[%clk 01:34:22]} {[%emt 00:01:39]} 18. Bxd7 {[%clk
01:11:33]} {[%emt 00:13:22]} Rxc4 {[%clk 01:33:31]} {[%emt 00:01:20]} 19. Bb5
{[%clk 01:08:06]} {[%emt 00:03:58]} Qc7 {[%clk 01:20:02]} {[%emt 00:13:58]} 20.
Qe2 {[%clk 01:04:11]} {[%emt 00:04:26]} Re4 {[%clk 01:18:57]} {[%emt 00:01:35]}
21. Bd3 {[%clk 00:56:30]} {[%emt 00:08:11]} Rxe3 {[%clk 01:07:44]} {[%emt
00:11:42]} 22. fxe3 {[%clk 00:56:53]} {[%emt 00:00:06]} a3 {[%clk 00:49:04]}
{[%emt 00:19:12]} 23. Kb1 {[%clk 00:54:14]} {[%emt 00:03:09]} Qa5 {[%clk
00:28:39]} {[%emt 00:20:54]} 24. h4 {[%clk 00:40:33]} {[%emt 00:14:12]} axb2
{[%clk 00:18:46]} {[%emt 00:10:23]} 25. g5 {[%clk 00:35:45]} {[%emt 00:05:18]}
Bb7 {[%clk 00:13:20]} {[%emt 00:05:55]} 26. Bc4 {[%clk 00:35:42]} {[%emt
00:00:33]} b3 {[%clk 00:06:44]} {[%emt 00:07:07]} 27. Bxb3 {[%clk 00:31:11]}
{[%emt 00:05:01]} Ba6 {[%clk 00:05:32]} {[%emt 00:01:42]} 28. Qg4 {[%clk
00:29:04]} {[%emt 00:02:36]} Bc8 {[%clk 00:05:29]} {[%emt 00:00:34]} 29. Qf3
{[%clk 00:29:00]} {[%emt 00:00:34]} h5 {[%clk 00:02:58]} {[%emt 00:03:01]} 30.
Qxh5 {[%clk 00:27:02]} {[%emt 00:02:28]} Qb4 {[%clk 00:03:02]} {[%emt
00:00:25]} 31. Rhg1 {[%clk 00:25:17]} {[%emt 00:02:15]} Bf5 {[%clk 00:02:44]}
{[%emt 00:00:49]} 32. Qf3 {[%clk 00:22:44]} {[%emt 00:03:02]} g6 {[%clk
00:02:50]} {[%emt 00:00:24]} 33. Rde1 {[%clk 00:17:53]} {[%emt 00:05:22]} Qc3
{[%clk 00:00:56]} {[%emt 00:02:24]} 34. Qg2 {[%clk 00:15:52]} {[%emt 00:02:31]}
e4 {[%clk 00:01:01]} {[%emt 00:00:25]} 35. Qf1 {[%clk 00:10:58]} {[%emt
00:05:24]} Rc8 {[%clk 00:00:53]} {[%emt 00:00:38]} 36. h5 {[%clk 00:10:46]}
{[%emt 00:00:41]} Bf8 {[%clk 00:00:42]} {[%emt 00:00:41]} 37. h6 {[%clk
00:10:53]} {[%emt 00:00:23]} Be7 {[%clk 00:00:47]} {[%emt 00:00:26]} 38. Qe2
{[%clk 00:09:17]} {[%emt 00:02:06]} Bd8 {[%clk 00:00:37]} {[%emt 00:00:40]} 39.
Ref1 {[%clk 00:04:38]} {[%emt 00:05:08]} Qe5 {[%clk 00:00:33]} {[%emt
00:00:34]} 40. Qb5 {[%clk 00:03:31]} {[%emt 00:01:37]} Be7 {[%clk 00:00:32]}
{[%emt 00:00:32]} 41. Qb7 {[%clk 00:02:11]} {[%emt 00:01:50]} Rf8 {[%clk
00:26:06]} {[%emt 00:04:55]} 42. Qa7 {[%clk 00:28:54]} {[%emt 00:03:47]} Bh3
{[%clk 00:23:35]} {[%emt 00:03:01]} 43. Rf4 {[%clk 00:26:59]} {[%emt 00:02:25]}
Bf5 {[%clk 00:20:34]} {[%emt 00:03:32]} 44. a4 {[%clk 00:24:44]} {[%emt
00:02:45]} Re8 {[%clk 00:20:19]} {[%emt 00:00:44]} 45. a5 {[%clk 00:24:24]}
{[%emt 00:00:51]} Qc3 {[%clk 00:20:37]} {[%emt 00:00:11]} 46. a6 {[%clk
00:19:40]} {[%emt 00:05:15]} Kh8 {[%clk 00:18:16]} {[%emt 00:02:51]} 47. Qb6
{[%clk 00:18:39]} {[%emt 00:01:31]} 1-0